Cogmind - Beta 14 *** ADVENTURER MODE // 2024.09.20 @ 19:52:36 Player: Knightshade Result: Destroyed by D-53 Grenadier with Mini Grenade Launcher Performance ------------- Evolutions (0) 0 Regions Visited (2) 400 Robots Destroyed (15) 75 Value Destroyed (342) 342 Prototype IDs (2) 40 Alien Tech Used (0) 0 Bonus (0) 0 TOTAL SCORE: 857 Bonus ------- None Cogmind --------- Core Integrity 0/250 Matter 194/300 Energy 65/100 System Corruption 0% Temperature Cool (0) Movement Rolling (140) Ox4 Location -10/Mines Parts ------- > --- POWER (1) -------- (None) > --- PROPULSION (2) --- Wheel > --- UTILITY (2) ------ High-capacity Storage Unit Improved Targeting Computer > --- WEAPON (2) ------- Autogun > --- INVENTORY (20) --- Ion Engine Wheel Wheel Compact Wheel Improved Heat Sink Medium Matter Pod (100) High-capacity Matter Pod (200) Visual Processing Unit Visual Processing Unit Signal Interpreter Signal Interpreter ECM Suite Autogun Autogun Peak State ------------ > --- POWER ------------ Ion Engine > --- PROPULSION ------- Compact Wheel Compact Wheel > --- UTILITY ---------- High-capacity Storage Unit Improved Targeting Computer > --- WEAPON ----------- Autogun Autogun > --- INVENTORY -------- Ion Engine Wheel Wheel Compact Wheel Improved Heat Sink Medium Matter Pod High-capacity Matter Pod Visual Processing Unit Visual Processing Unit Signal Interpreter Signal Interpreter ECM Suite Autogun Autogun [Rating: 12] Favorites ----------- Power Ion Engine Engine Ion Engine Propulsion Compact Wheel Wheel Compact Wheel Utility Improved Targeting Computer Storage Small Storage Unit Processor Improved Targeting Computer Weapon Autogun Energy Cannon Beam Cannon Ballistic Gun Autogun Launcher Rocket Launcher Build | -11 -10 -10 ------- Run | Yrd Mat Min Slots Evolved . | . . . Power . | . . . Propulsion . | . . . Utility . | . . . Weapon . | . . . Parts Attached 21 | 7 9 5 Power 2 | 1 1 . Engine 2 | 1 1 . Core . | . . . Reactor . | . . . Propulsion 4 | 3 . 1 Treads . | . . . Leg . | . . . Wheel 4 | 3 . 1 Hover . | . . . Flight . | . . . Utility 3 | 1 2 . Device . | . . . Storage 2 | 1 1 . Processor 1 | . 1 . Hackware . | . . . Protection . | . . . Artifact . | . . . Weapon 12 | 2 6 4 Energy Gun . | . . . Energy Cannon 2 | . 2 . Ballistic Gun 8 | 2 4 2 Ballistic Cannon . | . . . Launcher 2 | . . 2 Special Weapon . | . . . Impact Weapon . | . . . Slashing Weapon . | . . . Piercing Weapon . | . . . Special Melee Weapon . | . . . Unidentified Prototypes . | . . . Parts Lost 5 | . . 5 Power 1 | . . 1 Propulsion 2 | . . 2 Utility . | . . . Weapon 2 | . . 2 Highest Loss Streak 5 | . . 5 To Critical Strikes . | . . . Average Slot Usage (%) 93 | . 92 97 Engine 13 | . 13 13 Wheel 27 | . 28 26 Storage 14 | . 14 14 Processor 9 | . 7 14 Ballistic Gun 26 | . 26 24 Peak Build Rating 12 | 6 12 12 Average Rating 9 | 4 8 11 On Entrance 6 | . 6 12 Naked Turns . | . . . Heaviest Build 52 | 13 51 52 Greatest Support 32 | 32 32 32 Greatest Overweight (x) 1 | 1 1 1 Average Overweight (x) . | . . 1 Largest Inventory Capacity 20 | 8 20 20 Average Capacity 13 | 7 12 20 Most Carried 16 | 5 14 16 Average Carried 8 | 1 6 14 Final Capacity 20 | 8 20 20 Final Carried 14 | 2 14 14 Class Distribution -------------------- 100% | Mutant Dominant Class ---------------- Mutant | -10/Materials Mutant | -10/Mines Resources | -11 -10 -10 ----------- Run | Yrd Mat Min Matter Collected 989 | 195 617 177 Remotely . | . . . Salvage Created 856 | 78 634 144 Parts 31 | 1 30 . Haulers Intercepted 2 | . 2 . Recyclers Shooed 1 | . 1 . Parts Field Recycled . | . . . Retrieved Matter . | . . . Parts Self-Destructed . | . . . Prevented . | . . . Kills | -11 -10 -10 ------- Run | Yrd Mat Min Combat Hostiles Destroyed 27 | . 7 20 Guns 11 | . 5 6 Cannons 2 | . 2 . AOE 14 | . . 14 Classes Destroyed 6 | 1 4 1 Worker 1 | . 1 . Hauler 2 | . 2 . Recycler 3 | 1 2 . Watcher 2 | . 2 . Grunt 7 | . 7 . Assembled 20 | . . 20 Best Kill Streak 17 | 1 3 17 Combat Bots Only 17 | . 3 17 Max Kills in Single Turn 6 | 1 1 6 Gunslinging . | . . . Exploded 6 | . . 6 Melee . | . . . Uniques/NPCs Destroyed . | . . . Combat | -11 -10 -10 -------- Run | Yrd Mat Min Hostile Shots Fired 67 | . 34 33 Missed 19 | . 10 9 Damage Taken 800 | . 238 562 Core 260 | . 50 210 Absorbed by Shields . | . . . Ignored by Resistances 227 | . 73 154 Regen/Repaired (Parts) 38 | . 38 . Core Remaining (%) 100 | 100 . . Volleys Fired 55 | 4 31 20 Largest 2 | 2 2 2 Hottest 120 | 40 120 56 Shots Fired 109 | 8 62 39 Gun 89 | 8 50 31 Cannon 12 | . 12 . Launcher 8 | . . 8 Special . | . . . Kinetic 89 | 8 50 31 Thermal 12 | . 12 . Explosive 8 | . . 8 Electromagnetic . | . . . Robot Hit Streak 15 | 4 15 7 Robot Miss Streak 2 | 1 2 2 Penetration Max . | . . . Secondary Targets 3 | . 2 1 Max Gunslinging Chain 1 | . 1 1 Shots Hit Robots 79 | 6 50 23 Core Hits 69 | 2 23 44 Critical Kills . | . . . Critical Parts Destroyed . | . . . Critical Strikes . | . . . Melee Attacks . | . . . Impact . | . . . Slashing . | . . . Piercing . | . . . Sneak Attacks . | . . . Combat Hostiles . | . . . Follow-up Attacks . | . . . Damage Inflicted 2026 | 58 762 1206 Guns 1020 | 58 623 339 Cannons 139 | . 139 . Explosions 867 | . . 867 Melee . | . . . Ramming . | . . . Kinetic 1020 | 58 623 339 Thermal 139 | . 139 . Explosive 867 | . . 867 Electromagnetic . | . . . Impact . | . . . Slashing . | . . . Piercing . | . . . Highest Corruption . | . . . Average Corruption . | . . . Corruption Purged . | . . . Corruption Blocked . | . . . Overload Shots . | . . . Overflow Damage 20 | . 5 15 Projectiles 5 | . 5 . Explosions 15 | . . 15 Melee . | . . . Knockbacks . | . . . Impact . | . . . Kinetic . | . . . Secondary . | . . . Self-Inflicted Damage 32 | . . 32 Shots 1 | . . 1 Rammed . | . . . Targets Rammed . | . . . Kicked . | . . . Crushed . | . . . Highest Temperature 346 | . 346 64 Average Temperature 63 | . 89 18 Received Heat Transfer 257 | . 177 80 Effects 2 | . 2 . Shutdowns 1 | . 1 . Interference 1 | . 1 . Siege Activations . | . . . Robots Corrupted . | . . . Combat Hostiles . | . . . Parts Fried . | . . . Impact Corruptions . | . . . Robots Melted . | . . . Combat Hostiles . | . . . Parts Melted . | . . . Heat Transferred 296 | . 296 . Parts Sabotaged . | . . . Parts Stolen . | . . . Parts Stripped . | . . . Power Chain Reactions . | . . . Alert | -11 -10 -10 ------- Run | Yrd Mat Min Peak Influence 166 | 5 166 78 Initial 40 | . 2 40 Average 73 | 2 82 58 Maximum Alert Level . | . . . Low Security (%) 100 | 100 100 100 Level 1 . | . . . Level 2 . | . . . Level 3 . | . . . Level 4 . | . . . Level 5 . | . . . High Security . | . . . Max Security . | . . . Squads Dispatched . | . . . Investigation . | . . . Extermination . | . . . Reinforcement . | . . . Assault . | . . . Garrison . | . . . Intercept . | . . . Searches Triggered . | . . . Construction Impeded . | . . . Haulers Reinforced . | . . . Active Scanning Responses . | . . . Cargo Convoy Interrupts . | . . . Stealth | -11 -10 -10 --------- Run | Yrd Mat Min Distress Signals 1 | . 1 . Communications Jammed . | . . . Distress Signals . | . . . Times Spotted 34 | . 12 22 Peak Tracking Total 14 | . 5 14 Tactical Retreats 1 | . 1 . Traps | -11 -10 -10 ------- Run | Yrd Mat Min Traps Triggered . | . . . Indirectly . | . . . Trap Hack Attempts . | . . . Triggered . | . . . Disarmed . | . . . Reprogrammed . | . . . Reused . | . . . Traps Extracted . | . . . Installed . | . . . Triggered . | . . . Machines | -11 -10 -10 ---------- Run | Yrd Mat Min Machines Disabled 1 | . 1 . Max in Single Turn 1 | . 1 . Machines Repaired . | . . . Machines Dismantled . | . . . Machines Sabotaged . | . . . Overloaded Fab Kills . | . . . Hacking | -11 -10 -10 --------- Run | Yrd Mat Min Machines Accessed 7 | . 7 . Terminals 5 | . 5 . Fabricators . | . . . Repair Stations 1 | . 1 . Recycling Units 1 | . 1 . Scanalyzers . | . . . Garrison Access . | . . . Total Hacks 28 | . 28 . Successful 19 | . 19 . Failed 9 | . 9 . Catastrophic . | . . . Database Lockouts . | . . . Manual 16 | . 16 . Terminals 25 | . 25 . Fabricators . | . . . Repair Stations 2 | . 2 . Recycling Units 1 | . 1 . Scanalyzers . | . . . Garrison Access . | . . . Terminal Hacks 11 | . 11 . Part Schematic 1 | . 1 . Prototype ID Bank 1 | . 1 . Branch Access Points 1 | . 1 . Unreport Threat 1 | . 1 . Locate Traps 2 | . 2 . Transport Status 1 | . 1 . Hauler Manifests 1 | . 1 . Zone Layout 3 | . 3 . Fabricator Hacks . | . . . Repair Station Hacks 2 | . 2 . Scan Component 1 | . 1 . Repair 1 | . 1 . Recycling Unit Hacks 1 | . 1 . Report Inventory 1 | . 1 . Scanalyzer . | . . . Garrison Access Hacks . | . . . Unauthorized Hacks 5 | . 5 . Terminals 5 | . 5 . Botnet 5 | . 5 . Fabricators . | . . . Repair Stations . | . . . Recycling Units . | . . . Scanalyzers . | . . . Garrison Access . | . . . Data Cores Recovered . | . . . Used . | . . . Hacking Detections 6 | . 6 . Full Trace Events . | . . . Feedback Events . | . . . Feedback Blocked . | . . . Robot Schematics Acquired . | . . . Robots Built . | . . . Authchips . | . . . Time . | . . . Total Robot Build Rating . | . . . Part Schematics Acquired 1 | . 1 . Parts Built . | . . . Authchips . | . . . Time . | . . . Total Part Build Rating . | . . . Parts Repaired 1 | . 1 . Time 26 | . 26 . Parts Recycled . | . . . Recycled Matter . | . . . Retrieved Matter . | . . . Retrieved Components . | . . . Parts Scanalyzed . | . . . Part Schematics Acquired . | . . . Parts Damaged . | . . . Bothacking | -11 -10 -10 ------------ Run | Yrd Mat Min Used RIF Installer . | . . . Robots Hacked . | . . . Non-combat . | . . . Combat . | . . . Robot Hacks Applied . | . . . Relay Couplers Released . | . . . Fabnet Peak Effective % . | . . . Robots Rewired . | . . . Allies Hacked . | . . . Hacks Repelled . | . . . Allies | -11 -10 -10 -------- Run | Yrd Mat Min Total Allies . | . . . Largest Group . | . . . Highest-Rated Group . | . . . Highest-Rated Ally . | . . . Total Orders . | . . . Ally Attacks . | . . . Total Damage . | . . . Kills . | . . . Allies Corrupted . | . . . Allies Melted . | . . . Intel | -11 -10 -10 ------- Run | Yrd Mat Min Robot Analysis Total . | . . . Derelict Logs Recovered . | . . . Drone Launches . | . . . Drone Recoveries . | . . . Exploration | -11 -10 -10 ------------- Run | Yrd Mat Min Turns Passed 1053 | 59 795 199 Spaces Moved 725 | 35 574 116 Core 11 | 11 . . Treads . | . . . Legs . | . . . Wheels 714 | 24 574 116 Hover . | . . . Flight . | . . . Fastest Speed 50 | 50 100 115 Average Speed 106 | 94 105 115 Slowest Speed 115 | 100 115 115 Overloaded Moves . | . . . Propulsion Burnouts . | . . . Robots Hopped . | . . . Cave-ins Triggered . | . . . Exploration Rate (%) 32 | 4 69 23 Regions Visited 2 Branch Regions 1 Pre-discovered Areas 1 | . . 1 Known Exits Taken 1 | . 1 . Unknown Exits Taken 1 | 1 . . Scrap Searched 1 | . . 1 Spaces Dug . | . . . Terrain Destroyed 83 | . . 83 Melee . | . . . Projectile . | . . . AOE 83 | . . 83 Terrain Rammed . | . . . Walls Destroyed . | . . . Machines Disabled . | . . . Actions | -11 -10 -10 --------- Run | Yrd Mat Min Total 912 | 53 711 148 Wait 71 | . 66 5 Move 723 | 34 573 116 Hop . | . . . Pick Up 33 | 8 23 2 Fast Attach . | . . . Attach 12 | 6 4 2 Detach . | . . . Swap 9 | 1 5 3 Drop 9 | . 9 . Fire 55 | 4 31 20 Melee . | . . . Ram . | . . . Kick . | . . . Crush . | . . . Escape Stasis . | . . . Rewire . | . . . Trap . | . . . Miscellaneous . | . . . Route ------- -11/Scrapyard -10/Materials (discovered 3 exits: [*Mat x2] / *Min) -10/Mines History --------- Turn | Location | Event 16 | -11/Scrapyard | Discovered new exit (range 15) 60 | -11/Scrapyard | Entered Materials 285 | -10/Materials | Discovered new exit (range 8) 309 | -10/Materials | Build established: Mutant 353 | -10/Materials | Repaired Ion Engine 387 | -10/Materials | Discovered new exit (range 14) 387 | -10/Materials | Identified exit to Mines 506 | -10/Materials | Discovered new exit (range 3) 855 | -10/Materials | Entered Mines 888 | -10/Mines | Received a Rocket Launcher from a helpful Derelict 892 | -10/Mines | Assembled infested the area 969 | -10/Mines | Destroyed 17 combat bots 999 | -10/Mines | Learned location of Storage (-7) 1045 | -10/Mines | Core integrity fell below 50% 1049 | -10/Mines | Core integrity fell below 20% 1054 | -10/Mines | Destroyed by D-53 Grenadier with Mini Grenade Launcher Last Messages --------------- 00980_ Acquired 13 matter. 00993_ as-53277 destroyed. 00996_ Acquired 18 matter. 00999_ A derelict emerges from the shadows: "Are any of them following you? I'm here trying to lose some heat after our second raid on Storage failed. Whatever you do stay away from that place, they've tightened security following our previous successful raids." World map updated: -7/Storage. 01001_ 9J-829(g): "We scattered so the Unaware couldn't effectively use their advantage in numbers, and I suggest you do the same." 01001_ 9J-829(g) slips back into the shadows. 01020_ Acquired Wheel. 01021_ Acquired 28 matter. 01040_ C-30 ARC bursts open, deploying its payload. 01040_ D-53 Grenadier unfolds itself. 01044_ Com. Wheel destroyed. 01048_ Ion Engine destroyed. 01050_ Rocket Launcher destroyed. 01052_ The unstable cave ceiling collapses. 01054_ Autogun destroyed. Map ----- +----------------------------------------------------+ | ???????????????## #?##### ??????? | | ??????????#####?## #?????? #?????? | | ???????#### # ##?# ##??????? #?????? | | ??????## ### ####?????????#?????? | | ??????# ## # #??????????????????? | | ??????# [! #??????????????????? | | ??????# # % ###??????????????????? | | ?????## # ##????????????????????? | | ????## % ## #?????????????????????? | | ????# ##### #?????????????????????? | | ????# # #???# ?????????????????????? | | ????# # ###? ????????????????????? | | ????## ## ## # ???????????????????? | | ?????### ??????????????????? | | ???????# % ## ?????????????????? | | ???????## ??## ????????????????? | | ????????# d ????# ???????????????? | | ????????# d #????#?????????????????? | | ????????# # #??????????????????????? | | ??????? ?# < #??????????????????????? | | ??????##???# ###????????????????????? | | ???????????## ##???????????????????? | | ??????????## ##??????????????????? | | ??????????# #??????????????????? | | ??????????# # #??????????????????? | | ??????????# @ #??????????????????? | | ??????????# #??????????????????? | | ??????????# #??????????????????? | | ??????????## # ##??????????????????? | | ???????????## ##???????????????????? | | ????????????## ###????????????????????? | | ?????????????# ##?????????????????????? | | ????????????## ##????????????????????? | | ????????????# #????????????????????? | | ???????????## ##???????????????????? | | ????????#### ##??????????????????? | | ????????# #??????????????????? | | ???????# #### #??????????????????? | | ???????# ##??####??????????????????? | | ??????# #?????????????????????????? | | ?????# ##?????????????????????????? | | ?????# ###??????????????????????????? | | ?????## #?????????????????????????????? | | ??????###??????????????????????????????? | | ???????????????????????????????????????? | | ???????????????????????????????????????? | | ???????????????????????????????????????? | | | | | | | +----------------------------------------------------+ Best States ------------- Heat Dissipation 25 Energy Generation 10 Energy Capacity 250 Matter Stores 300 Matter Capacity 300 Sight Range 16 Terrain Scan Density 10 Resistance: KI 20 Resistance: TH 20 Resistance: EX 20 Resistance: EM 20 Resistance: I 20 Resistance: S 20 Resistance: P 20 Evasion (%) 40 Targeting Accuracy 6 Offensive Hacking 10 Item Schematics ----------------- Huge Storage Unit | -10/Materials | Hacked Robot Schematics ------------------ None Fabricated ------------ Nothing Alien Tech Used ----------------- None Achievements -------------- None Challenges ------------ None Game ------ Seed SystemBoreSource Manual? 0 Play Time 00:13:31 Cumulative 71.1 hours Start 2024.09.20 @ 19:41:42 End 2024.09.20 @ 19:52:36 Sessions 1 Manual Loads 0 Difficulty Adventurer Special Mode None Game No. 47 Rogue 0 Adventurer 47 Explorer 0 Win Type - Total 0 Types 0/0/0/0/0/0/0/0/0 Lore% 20 Gallery% 39 Achievement% 34 Wizard Run 0 Options --------- Layout 0 ASCII 0 Keyboard 0 Movement Numpad Keybinds 0 Fullscreen 1 Font 18/SmallcapsGlow Map View 76x50 Zoom Use 0% Tactical HUD 1 Map Filters NONE Filters NONE Steam 1 RUN: 6017427f-1630-411e-8cd3-836de7e15584